bitfinex/quotes_SOLUSD_20260113
["timestamp","ask_amount","ask_price","bid_price","bid_amount"]
[1768311608421,8.7943973,142.16,142.1,15.83149537]
[1768311608422,15.82692133,142.2,142.12,0.69181077]
[1768311608623,28.64692133,142.2,142.12,0.69181077]
[1768311608934,8.7943973,142.17,142.12,0.69181077]
[1768311609127,28.64692133,142.2,142.12,0.69181077]
[1768311609320,8.7943973,142.18,142.13,0.69181077]
[1768311609523,19.85252403,142.2,142.1,31.31045296]
[1768311609524,0.68364071,142.22,142.14,9.48620807]
[1768311609720,8.7943973,142.21,142.15,0.69181077]
[1768311610032,15.82582433,142.22,142.16,0.69181077]
[1768311610229,7.03142703,142.22,142.16,0.69181077]
[1768311610408,19.8509167,142.23,142.17,9.48620807]
[1768311610616,0.68364071,142.25,142.18,9.48620807]
[1768311610617,7.71395741,142.25,142.18,9.48620807]
[1768311610917,8.7943973,142.24,142.18,9.48620807]
[1768311611319,8.7943973,142.26,142.21,0.69181077]
[1768311611729,7.02892632,142.27,142.21,0.69181077]
[1768311611915,15.82332362,142.27,142.21,0.69181077]
[1768311612110,15.82332362,142.27,142.21,7.72351186]
[1768311612337,7.02892632,142.27,142.21,16.51790916]
[1768311612518,28.64283737,142.28,142.22,0.69181077]
[1768311612720,0.68364071,142.3,142.22,9.48620807]
[1768311613025,0.68364071,142.3,142.23,0.69181077]
[1768311613026,15.82251174,142.29,142.23,0.69181077]
[1768311613428,13.50364071,142.3,142.24,9.48620807]
[1768311613429,28.64197252,142.3,142.24,9.48620807]
[1768311613741,28.64197252,142.3,142.24,0.69181077]
[1768311614356,8.7943973,142.29,142.24,0.69181077]
[1768311615346,7.02757522,142.3,142.24,7.72187829]
[1768311615519,15.82197252,142.3,142.24,7.72187829]
[1768311615718,15.82197252,142.3,142.24,0.69181077]
[1768311616139,15.82197252,142.3,142.24,7.72203245]
[1768311616330,7.02757522,142.3,142.25,9.47314011]
[1768311616526,15.82197252,142.3,142.25,0.67874281]
[1768311616732,7.02757522,142.3,142.25,0.67874281]
[1768311616934,15.82197252,142.3,142.25,0.67874281]
[1768311617519,7.02757522,142.3,142.25,0.67874281]
[1768311617738,7.02757522,142.3,142.25,9.47314011]
[1768311618267,15.82197252,142.3,142.25,0.67874281]
[1768311619216,7.02757522,142.3,142.25,0.67874281]
[1768311619442,7.02813512,142.29,142.25,0.67874281]
[1768311619638,7.02743713,142.3,142.25,7.7085193]
[1768311619945,15.82183443,142.3,142.26,0.67874281]
[1768311620141,28.64140622,142.31,142.26,0.67874281]
[1768311620521,8.7943973,142.28,142.24,0.67874281]
[1768311621122,8.7943973,142.29,142.24,0.67874281]
[1768311621323,12.44939668,142.3,142.25,0.67874281]
[1768311622138,5.42191443,142.26,142.22,0.67874281]
[1768311622341,5.42191443,142.24,142.19,0.67874281]
[1768311622539,24.59599946,142.3,142.24,0.67874281]
[1768311622743,0.4481873,142.25,142.19,6.6801107]
[1768311622922,5.42191443,142.26,142.19,0.67874281]
[1768311623123,5.42191443,142.25,142.2,0.67874281]
[1768311623327,24.59599946,142.3,142.13,0.67874281]
[1768311623328,0.70622059,142.23,142.13,0.67874281]
[1768311623540,12.82,142.22,142.14,0.67874281]
[1768311623722,5.42191443,142.18,142.14,0.67874281]
[1768311624128,24.6062992,142.24,142.14,0.67874281]
[1768311624446,12.82,142.23,142.15,0.67874281]
[1768311624665,5.42191443,142.2,142.15,0.67874281]
[1768311625333,12.45555541,142.18,142.13,7.0357361]
[1768311625725,12.45555541,142.18,142.12,6.10065724]
[1768311626144,7.03298086,142.19,142.12,6.10065724]
[1768311626348,5.42191443,142.19,142.13,6.10065724]
[1768311627038,13.52885332,142.2,142.13,6.10065724]
[1768311627242,5.42191443,142.19,142.13,0.67874281]
[1768311627442,18.95076775,142.2,142.13,0.67874281]
[1768311627750,5.42191443,142.18,142.12,7.03595942]
[1768311628148,0.70600256,142.18,142.11,7.71538759]
[1768311628339,6.12791699,142.18,142.11,6.10065724]
[1768311628729,6.12791699,142.18,142.13,7.03566476]
[1768311628928,0.70600256,142.18,142.13,7.03566476]
[1768311629346,18.24191443,142.19,142.13,24.62519547]
[1768311629855,18.24191443,142.19,142.13,30.0471099]
[1768311630149,5.42191443,142.18,142.14,0.67874281]
[1768311630352,5.42191443,142.18,142.12,5.42191443]
[1768311630353,5.42191443,142.17,142.12,7.71490659]
[1768311630536,5.42191443,142.17,142.13,0.67874281]
[1768311630932,0.70885332,142.23,142.13,0.67874281]
[1768311631128,0.70885332,142.23,142.12,24.62693214]
[1768311631129,13.24377686,142.22,142.14,0.67874281]
[1768311631331,5.42191443,142.19,142.15,0.67874281]
[1768311631538,5.42191443,142.18,142.13,7.71421484]
[1768311631753,7.03247289,142.2,142.15,7.7135144]
[1768311632056,12.45438732,142.2,142.15,7.7135144]
[1768311632554,7.03247289,142.2,142.15,7.7135144]
[1768311632857,5.42191443,142.22,142.17,0.67874281]
[1768311633567,7.03086549,142.23,142.17,7.71244634]
[1768311633945,5.42191443,142.22,142.17,7.71244634]
[1768311634146,7.03086549,142.23,142.18,0.67874281]
[1768311634147,12.45277992,142.23,142.18,0.67874281]
[1768311634959,7.03086549,142.23,142.18,0.67874281]
[1768311635258,5.42191443,142.24,142.19,0.67189429]
[1768311635461,19.85032227,142.25,142.19,0.67189429]
[1768311635462,5.42191443,142.23,142.19,7.704612]
[1768311635664,12.45290284,142.23,142.19,0.67189429]
[1768311635956,7.030495,142.24,142.19,7.70465025]
[1768311636155,5.42191443,142.23,142.19,7.70465025]
[1768311636356,7.030495,142.24,142.19,7.70465025]
[1768311636552,12.45240943,142.24,142.19,7.70465025]
[1768311637366,5.42191443,142.24,142.19,7.70465025]
[1768311637568,12.4523701,142.24,142.19,7.70465025]
[1768311638277,5.42191443,142.24,142.19,7.70465025]
[1768311638647,12.45236938,142.24,142.19,7.70465025]
[1768311638855,12.45236938,142.24,142.19,25.28675869]
[1768311638856,5.42191443,142.24,142.19,25.28675869]
[1768311639285,25.70874465,142.25,142.19,30.70867312]
[1768311639862,20.28683022,142.25,142.19,25.28675869]
[1768311640070,5.42191443,142.24,142.19,25.28675869]
[1768311640445,5.42191443,142.23,142.19,7.70465025]
[1768311640976,5.42191443,142.23,142.17,0.67189429]
[1768311640977,5.42191443,142.21,142.17,0.67189429]
[1768311641270,5.42191443,142.21,142.17,7.03348695]
[1768311641442,0.43941178,142.23,142.17,7.03348695]
[1768311641443,5.42191443,142.2,142.17,7.70538124]
[1768311642855,7.03172345,142.22,142.17,7.70538124]
[1768311643056,5.42191443,142.2,142.17,7.70538124]
[1768311643644,7.03172345,142.22,142.17,7.70538124]
[1768311643852,5.42191443,142.2,142.17,7.70538124]
[1768311644141,5.42191443,142.19,142.17,0.67189429]
[1768311644346,5.42191443,142.19,142.16,7.03422364]
[1768311644554,5.42191443,142.2,142.16,7.70611793]
[1768311644763,5.42191443,142.2,142.17,7.03366509]
[1768311644940,12.82,142.21,142.17,7.03366509]
[1768311645142,7.03172345,142.22,142.17,7.70555938]
[1768311645453,0.43941178,142.23,142.17,7.70555938]
[1768311645454,12.82,142.21,142.18,0.67189429]
[1768311645663,12.82,142.21,142.18,7.70482646]
[1768311646358,25.2728435,142.23,142.18,7.70482646]
[1768311647066,12.82,142.23,142.19,0.67189429]
[1768311647976,12.82,142.23,142.19,7.70444639]
[1768311648148,19.8503712,142.24,142.19,7.70444639]
[1768311648354,5.42191443,142.23,142.19,7.70444639]
[1768311648553,5.42191443,142.23,142.19,0.67189429]
[1768311648754,5.42191443,142.22,142.17,7.70564244]
[1768311648950,19.8503712,142.24,142.17,0.67189429]
[1768311648951,5.42191443,142.2,142.17,0.67189429]
[1768311649578,5.42191443,142.19,142.15,0.67189429]
[1768311649782,5.42191443,142.2,142.15,7.70662403]
[1768311649972,12.4544156,142.2,142.16,7.03427124]
[1768311650281,25.2744156,142.2,142.15,7.70655682]
[1768311650771,12.82,142.2,142.15,30.71552717]
[1768311650971,12.82,142.2,142.16,0.67189429]
[1768311651549,18.24191443,142.2,142.16,0.67189429]
[1768311651961,5.42191443,142.2,142.16,0.67189429]
[1768311652169,19.85204781,142.21,142.16,7.70584262]
[1768311652375,5.42191443,142.2,142.16,7.70584262]
[1768311652680,7.72447927,142.22,142.16,25.29166141]
[1768311652860,7.72447927,142.22,142.16,7.70584262]
[1768311652861,18.24191443,142.2,142.16,7.70584262]
[1768311653059,5.42191443,142.19,142.16,0.67189429]
[1768311653388,5.42191443,142.19,142.15,7.03460994]
[1768311653575,12.82,142.2,142.14,0.67189429]
[1768311653576,5.42191443,142.17,142.14,0.67189429]
[1768311653769,5.42191443,142.17,142.14,7.70692758]
[1768311654748,5.42191443,142.18,142.14,7.70692758]
[1768311655461,13.51052399,142.2,142.14,7.70692758]
[1768311655462,25.96497438,142.2,142.14,7.70692758]
[1768311655760,5.42191443,142.18,142.14,7.70692758]
[1768311656081,0.4419229,142.19,142.14,7.03503329]
[1768311656384,5.42191443,142.18,142.14,7.03503329]
[1768311656682,5.42191443,142.18,142.13,24.62471833]
[1768311657178,7.47489727,142.19,142.13,25.29661262]
[1768311657384,5.42191443,142.17,142.13,25.29661262]
[1768311657591,5.42191443,142.17,142.13,7.03581228]
[1768311657879,5.42191443,142.17,142.13,24.62534299]
[1768311658176,0.4419229,142.19,142.13,25.29723728]
[1768311658361,18.24191443,142.18,142.14,0.67189429]
[1768311658558,18.24191443,142.18,142.15,7.03482237]
[1768311659657,5.42191443,142.17,142.15,7.03482237]
[1768311659861,5.42191443,142.17,142.14,7.70715458]
[1768311661878,0.69564846,142.23,142.15,0.67189429]
[1768311662057,12.82,142.23,142.18,0.67189429]
[1768311662573,5.42191443,142.22,142.18,0.67189429]
[1768311662874,5.42191443,142.21,142.18,0.67189429]
[1768311663078,5.42191443,142.21,142.12,61.71795476]
[1768311663079,5.42191443,142.21,142.17,7.03339043]
[1768311663670,5.42191443,142.18,142.14,0.67189429]
[1768311663872,0.59052399,142.19,142.14,7.70709877]
[1768311664063,5.42191443,142.17,142.14,7.70709877]
[1768311664878,7.03307368,142.19,142.15,0.69534286]
[1768311665176,5.42191443,142.17,142.15,0.69534286]
[1768311665678,5.42191443,142.16,142.13,0.69534286]
[1768311665870,5.42191443,142.15,142.13,0.69534286]
[1768311666076,5.42191443,142.15,142.13,7.7310139]
[1768311666272,12.82,142.17,142.13,7.03567104]
[1768311666481,5.42191443,142.15,142.13,7.03567104]
[1768311666684,5.42191443,142.15,142.13,7.03576992]
[1768311667183,5.42191443,142.16,142.13,7.03576992]
[1768311667479,5.42191443,142.16,142.13,7.73111278]
[1768311668181,12.82,142.17,142.13,7.73111278]
[1768311668383,5.42191443,142.16,142.13,7.73111278]
[1768311669164,12.82,142.17,142.13,7.73111278]
[1768311669366,5.42191443,142.16,142.14,0.69534286]
[1768311669781,5.42191443,142.15,142.1,0.69534286]
[1768311670078,5.42191443,142.14,142.12,7.03620813]
[1768311670482,5.42191443,142.14,142.13,7.03581228]
[1768311670668,5.42191443,142.14,142.11,0.69534286]
[1768311671179,0.65481524,142.23,142.16,0.69534286]
[1768311671388,5.90710065,142.22,142.17,0.69534286]
[1768311671563,6.07672967,142.22,142.17,0.69534286]
[1768311672073,5.42191443,142.21,142.17,0.69534286]
[1768311672382,12.82,142.22,142.17,0.69534286]
[1768311672580,5.42191443,142.18,142.14,0.69534286]
[1768311672782,5.42191443,142.15,142.12,0.69534286]
[1768311673085,5.42191443,142.14,142.12,0.69534286]
[1768311673391,5.42191443,142.14,142.12,7.73137479]
[1768311673767,0.65481524,142.17,142.12,7.73137479]
[1768311673969,5.42191443,142.14,142.12,0.69534286]
[1768311674192,5.42191443,142.14,142.12,7.03630166]
[1768311675191,5.42191443,142.14,142.11,0.70230159]
[1768311675691,5.42191443,142.14,142.1,24.63003272]
[1768311676472,0.68811645,142.16,142.1,24.63003272]
[1768311676473,0.68811645,142.15,142.1,24.63003272]
[1768311676690,0.68811645,142.15,142.1,25.33233431]
[1768311676978,5.42191443,142.13,142.1,25.33233431]
[1768311677176,5.42191443,142.14,142.1,25.33233431]
[1768311677877,5.42191443,142.12,142.09,0.70230159]
[1768311678075,0.68811645,142.14,142.1,7.03724213]
[1768311678386,7.03450196,142.16,142.1,7.03724213]
[1768311678387,5.42191443,142.12,142.1,7.03724213]
[1768311678779,7.72261841,142.16,142.1,7.03724213]
[1768311678984,7.72261841,142.16,142.1,24.63048632]
[1768311679198,5.42191443,142.11,142.1,7.03724213]
[1768311679776,0.68811645,142.15,142.1,7.03724213]
[1768311679986,5.42191443,142.12,142.1,7.03724213]
[1768311680187,5.42191443,142.13,142.1,7.03724213]
[1768311680387,0.68811645,142.15,142.1,7.03724213]
[1768311680576,5.42191443,142.13,142.1,7.03724213]
[1768311680894,12.82,142.18,142.1,0.70230159]
[1768311680895,0.68811645,142.18,142.1,0.70230159]
[1768311681098,5.42191443,142.16,142.11,5.42191443]
[1768311681394,0.68811645,142.16,142.12,8.82708623]
[1768311682305,0.68811645,142.15,142.1,0.70230159]
[1768311682482,8.82708623,142.16,142.11,16.56619029]
[1768311682803,12.82,142.17,142.13,0.70230159]
[1768311683100,28.68105083,142.17,142.13,0.70230159]
[1768311683679,19.8539646,142.17,142.13,0.70230159]
[1768311683995,28.68105083,142.17,142.13,0.70230159]
[1768311684381,21.64708623,142.17,142.13,0.70230159]
[1768311684785,8.82708623,142.17,142.13,7.73803321]
[1768311684995,6.6801107,142.24,142.13,7.73803321]
[1768311684996,0.68811645,142.23,142.17,0.70230159]
[1768311685171,12.84,142.22,142.17,9.52938782]
[1768311685822,21.66708623,142.22,142.17,9.52938782]
[1768311686093,21.66708623,142.22,142.17,0.70230159]
[1768311686094,8.82708623,142.21,142.17,0.70230159]
[1768311686497,20.55996848,142.22,142.15,16.56417041]
[1768311686498,8.82708623,142.2,142.15,16.56417041]
[1768311686686,8.82708623,142.2,142.16,7.73650999]
[1768311687276,8.82708623,142.21,142.16,16.56351237]
[1768311687775,9.51520268,142.21,142.16,16.56351237]
[1768311687996,9.51520268,142.21,142.16,0.70230159]
[1768311687997,8.82708623,142.19,142.16,0.70230159]
[1768311688503,7.72110898,142.19,142.14,0.70230159]
[1768311688678,12.82,142.18,142.15,7.03478828]
[1768311689079,7.72110898,142.19,142.15,7.03478828]
[1768311689285,29.36819521,142.19,142.15,7.03478828]
[1768311689501,0.68811645,142.21,142.16,8.82708623]
[1768311689700,13.50811645,142.21,142.16,9.52938782]
[1768311689880,8.82708623,142.21,142.16,9.52938782]
[1768311690097,21.64708623,142.21,142.16,9.52938782]
[1768311690594,18.26568763,142.23,142.16,9.52938782]
[1768311690595,8.82708623,142.22,142.18,0.70230159]
[1768311690783,21.64708623,142.22,142.18,0.70230159]
[1768311691396,12.82,142.22,142.18,9.52938782]
[1768311691709,0.68811645,142.23,142.19,8.82708623]
[1768311691888,7.71903041,142.23,142.19,8.82708623]
[1768311692283,16.54611664,142.23,142.18,9.52938782]
[1768311692487,16.54611664,142.23,142.18,0.70230159]
[1768311692780,16.54611664,142.23,142.18,9.52938782]
[1768311692987,16.54611664,142.23,142.17,15.86048047]
[1768311692988,8.82708623,142.22,142.17,15.86048047]
[1768311693186,0.68811645,142.22,142.17,15.86048047]
[1768311693508,9.51520268,142.22,142.17,15.86048047]
[1768311693801,0.68811645,142.21,142.17,7.03339424]
[1768311693978,9.51520268,142.18,142.12,9.52938782]
[1768311694180,0.68811645,142.17,142.12,16.56557817]
[1768311694390,9.51520268,142.17,142.12,16.56557817]
[1768311694794,16.54920665,142.17,142.12,16.56557817]
[1768311694997,7.72212042,142.17,142.12,7.73849194]
[1768311695183,8.82708623,142.16,142.12,7.03619035]
[1768311695999,8.82708623,142.15,142.11,7.03680247]
[1768311696780,8.82708623,142.15,142.1,7.69628194]
[1768311696781,8.82708623,142.14,142.1,7.69628194]
[1768311697209,9.50378414,142.15,142.1,16.52336817]
[1768311697409,0.67669791,142.15,142.1,16.52336817]
[1768311697585,8.82708623,142.15,142.11,0.65912526]
[1768311697781,8.82708623,142.14,142.11,7.69580096]
[1768311698324,8.82708623,142.14,142.11,7.03674995]
[1768311698488,15.86165845,142.16,142.11,16.52296144]
[1768311698690,9.50378414,142.15,142.11,7.03674995]
[1768311700094,0.67669791,142.15,142.11,15.86383618]
[1768311700292,13.49669791,142.15,142.11,15.86383618]
[1768311700707,0.67669791,142.15,142.11,15.86383618]
[1768311701507,0.67669791,142.15,142.12,8.82708623]
[1768311701907,0.67669791,142.15,142.11,7.03674995]
[1768311702214,0.67669791,142.15,142.12,8.82708623]
[1768311702386,0.67669791,142.15,142.12,15.86315144]
[1768311702989,17.58400769,142.18,142.14,8.82708623]
[1768311702990,12.82,142.18,142.14,8.82708623]
[1768311703206,0.67669791,142.19,142.14,8.82708623]
[1768311703207,13.49669791,142.19,142.15,8.82708623]
[1768311703401,13.49669791,142.19,142.16,8.82708623]
[1768311703604,0.67669791,142.19,142.16,8.82708623]
[1768311704691,0.67669791,142.19,142.15,15.86171677]
[1768311705208,0.67669791,142.19,142.16,8.82708623]
[1768311705406,0.67669791,142.19,142.16,15.86109275]
[1768311706497,0.67669791,142.19,142.16,8.82708623]
[1768311706888,13.49669791,142.2,142.17,8.82708623]
[1768311707309,0.67669791,142.22,142.19,8.82708623]
[1768311707512,0.67669791,142.22,142.2,8.10208623]
[1768311707905,0.59052399,142.27,142.21,9.48621149]
[1768311708116,0.099,142.26,142.2,0.65912526]
[1768311708413,7.12853018,142.26,142.23,8.82708623]
[1768311708621,7.12853018,142.26,142.2,7.69130698]
[1768311708799,7.12853018,142.26,142.22,8.82708623]
[1768311709002,7.12853018,142.26,142.23,8.82708623]
[1768311709316,7.12853018,142.26,142.22,8.82708623]
[1768311710200,19.84917295,142.27,142.23,8.82708623]
[1768311710505,19.94817295,142.27,142.23,8.82708623]
[1768311710709,19.94817295,142.27,142.21,7.69081277]
[1768311710710,19.94817295,142.27,142.22,7.69022057]
[1768311710914,19.94817295,142.27,142.23,8.82708623]
[1768311711423,17.66781931,142.31,142.25,8.82708623]
[1768311711594,9.41269498,142.29,142.23,0.65912526]
[1768311711794,9.41269498,142.29,142.24,8.82708623]
[1768311712203,7.61368216,142.29,142.25,8.82708623]
[1768311712727,0.58560875,142.32,142.28,8.82708623]
[1768311713395,0.58560875,142.32,142.25,7.6885315]
[1768311713396,9.41269498,142.32,142.25,7.6885315]
[1768311713616,9.41269498,142.32,142.27,8.82708623]
[1768311713932,7.6124945,142.32,142.27,8.82708623]
[1768311714124,16.43958073,142.32,142.27,8.82708623]
[1768311714325,16.43918332,142.32,142.27,8.82708623]
[1768311714536,16.43918332,142.32,142.26,7.68832125]
[1768311714826,8.82708623,142.31,142.26,9.48621149]
[1768311714998,12.82,142.3,142.27,8.82708623]
[1768311715605,12.82,142.3,142.28,8.82708623]
[1768311716502,12.82,142.3,142.27,8.82708623]
[1768311717512,12.82,142.3,142.28,8.82708623]
[1768311718807,7.61211499,142.32,142.28,0.65912526]
[1768311718808,7.02650624,142.32,142.28,0.65912526]
[1768311719012,12.82,142.31,142.28,9.48621149]
[1768311719403,12.82,142.31,142.28,0.65912526]
[1768311719597,12.82,142.33,142.3,8.82708623]
[1768311719804,12.82,142.33,142.31,8.82708623]
[1768311720519,19.84594997,142.33,142.31,8.82708623]
[1768311721621,19.84594997,142.33,142.3,9.48621149]
[1768311721806,12.82,142.33,142.31,8.82708623]
[1768311722319,8.92708623,142.36,142.33,0.65912526]
[1768311722320,0.1,142.36,142.33,0.65912526]
[1768311722542,0.1,142.36,142.35,8.82708623]
[1768311722820,7.12317367,142.39,142.38,8.82708623]
[1768311722821,0.1,142.39,142.38,8.82708623]
[1768311723339,0.1,142.39,142.35,8.82708623]
[1768311723523,7.12299106,142.39,142.35,8.82708623]
[1768311723824,7.12299106,142.39,142.32,33.41942957]
[1768311723825,8.82708623,142.37,142.32,0.65912526]
[1768311724011,12.82,142.37,142.32,16.51256767]
[1768311724204,21.64708623,142.37,142.32,9.48621149]
[1768311724400,28.67146668,142.37,142.32,9.48621149]
[1768311725215,12.82,142.36,142.33,9.49852488]
[1768311725522,7.6890947,142.38,142.32,7.02601665]
[1768311725523,12.82,142.37,142.35,9.49852488]
[1768311725721,0.1,142.39,142.36,9.49852488]
[1768311725934,0.1,142.39,142.32,33.41915122]
[1768311725935,12.82,142.38,142.34,0.67143865]
[1768311726118,12.82,142.38,142.24,0.67143865]
[1768311726119,0.11622097,142.34,142.24,0.67143865]
[1768311726300,15.85597496,142.27,142.24,0.67143865]
[1768311726526,12.82,142.26,142.24,0.67143865]
[1768311726840,12.82,142.25,142.24,0.67143865]
[1768311727329,7.02802754,142.29,142.25,8.82708623]
[1768311727330,12.82,142.29,142.25,8.82708623]
[1768311727523,21.64708623,142.3,142.25,8.82708623]
[1768311727707,21.64708623,142.3,142.25,9.49852488]
[1768311727902,21.64708623,142.3,142.26,0.67143865]
[1768311728107,21.64708623,142.3,142.26,0.61143865]
[1768311728331,21.64708623,142.3,142.26,0.55143865]
[1768311728332,28.67462041,142.3,142.26,0.55143865]
[1768311728702,8.82708623,142.29,142.24,15.85745743]
[1768311729106,8.82708623,142.29,142.24,7.0303712]
[1768311729308,28.67462041,142.3,142.24,15.85729009]
[1768311729806,8.82708623,142.29,142.24,15.85729009]
[1768311730121,21.64708623,142.31,142.26,15.8563988]
[1768311730423,28.67407929,142.31,142.25,16.52825658]
[1768311731205,15.85407929,142.31,142.25,16.52825658]
[1768311731423,8.82708623,142.31,142.26,16.527724]
[1768311731624,21.64708623,142.31,142.26,16.527724]
[1768311732441,28.67405581,142.31,142.26,16.527724]
[1768311732636,28.67405581,142.31,142.26,9.49852488]
[1768311732936,21.64708623,142.31,142.26,16.52777214]
[1768311733231,16.54349981,142.34,142.29,0.67143865]
[1768311733432,15.8522044,142.35,142.29,15.85496045]
[1768311733657,28.83401877,142.35,142.29,15.85496045]
[1768311733929,16.01401877,142.35,142.29,15.85496045]
[1768311734240,0.16181437,142.35,142.3,8.82708623]
[1768311734439,19.84457636,142.36,142.31,8.82708623]
[1768311734680,0.16181437,142.36,142.3,8.82708623]
[1768311734953,8.9889006,142.36,142.3,8.82708623]
[1768311735332,16.01337034,142.36,142.3,16.55967085]
[1768311735654,8.82708623,142.35,142.31,0.70560133]
[1768311735882,7.02426142,142.37,142.31,0.70560133]
[1768311736067,12.82,142.37,142.32,8.82708623]
[1768311736231,21.64708623,142.37,142.31,0.70560133]
[1768311736425,8.82708623,142.38,142.34,0.70560133]
[1768311736632,21.64708623,142.38,142.33,8.82708623]
[1768311736962,0.22597449,142.37,142.33,8.82708623]
[1768311737149,0.22597449,142.37,142.32,8.82708623]
[1768311737345,0.22597449,142.37,142.32,15.85342012]
[1768311739145,9.05306072,142.37,142.32,7.02633389]
[1768311739447,0.22597449,142.37,142.32,15.85342012]
[1768311740064,0.22597449,142.37,142.32,16.55902145]
[1768311740577,0.22597449,142.37,142.33,8.82708623]
[1768311740936,15.85082396,142.38,142.32,7.73193522]
[1768311741132,15.85082396,142.38,142.33,8.82708623]
[1768311741745,15.85082396,142.38,142.33,9.53268756]
[1768311741940,15.85082396,142.38,142.33,0.70560133]
[1768311742153,15.85082396,142.38,142.33,9.53268756]
[1768311742353,0.79074008,142.39,142.33,16.55860689]
[1768311742559,9.61782631,142.39,142.34,0.70560133]
[1768311742866,9.61782631,142.39,142.34,9.53268756]
[1768311743250,0.79074008,142.39,142.35,8.82708623]
[1768311743475,0.1,142.39,142.35,5.41494152]
[1768311743783,0.1,142.39,142.36,6.12054285]
[1768311743945,0.1,142.39,142.33,24.59073349]
[1768311743946,13.22484794,142.39,142.33,7.02591933]
[1768311744153,7.80990642,142.39,142.33,5.41494152]
[1768311744381,5.41494152,142.38,142.33,5.41494152]
[1768311744585,12.43853252,142.38,142.33,5.41494152]
[1768311744780,7.02358145,142.38,142.33,5.41494152]
[1768311745081,12.43852297,142.38,142.33,5.41494152]
[1768311745555,5.41494152,142.37,142.31,24.59385303]
[1768311745755,5.41494152,142.37,142.32,5.41494152]
[1768311745956,5.41494152,142.37,142.33,0.70560133]
[1768311746552,12.7233094,142.38,142.33,13.14642447]
[1768311747874,7.30836788,142.38,142.33,13.14642447]
[1768311748052,5.51494152,142.39,142.34,6.12054285]
[1768311748253,0.1,142.39,142.36,6.12054285]
[1768311748755,0.1,142.39,142.37,5.41494152]
[1768311749269,0.1,142.39,142.37,6.12054285]
[1768311749788,0.1,142.39,142.37,6.06054285]
[1768311750565,0.1,142.39,142.38,5.41494152]
[1768311750965,0.1,142.41,142.38,5.41494152]
[1768311751161,0.1,142.41,142.4,5.41494152]
[1768311751392,0.69074008,142.46,142.4,5.41494152]
[1768311751588,0.69074008,142.46,142.42,5.41494152]
[1768311752194,0.53812731,142.45,142.43,5.41494152]
[1768311752379,7.01988988,142.46,142.43,5.35494152]
[1768311753692,7.01988988,142.46,142.43,5.41494152]
[1768311754288,7.01988988,142.46,142.42,5.41494152]
[1768311754478,25.10680281,142.46,142.42,5.41494152]
[1768311755190,7.55801719,142.46,142.42,5.41494152]
[1768311755391,30.46700896,142.48,142.44,5.41494152]
[1768311755392,0.7924951,142.48,142.44,5.41494152]
[1768311755592,6.20743662,142.48,142.43,6.07576934]
[1768311756473,13.22618455,142.48,142.43,6.07576934]
[1768311756675,13.22618455,142.48,142.43,6.01576934]
[1768311756990,0.1,142.48,142.43,24.57317811]
[1768311757204,0.1,142.48,142.44,5.41494152]
[1768311757205,7.11870206,142.48,142.44,5.41494152]
[1768311758382,0.1,142.48,142.46,5.41494152]
[1768311758578,0.1,142.48,142.47,5.41494152]
[1768311758981,0.6924951,142.51,142.47,5.41494152]
[1768311759277,5.41494152,142.5,142.47,0.66082782]
[1768311759592,2.01853334,142.5,142.47,0.66082782]
[1768311760573,7.70959225,142.51,142.47,0.66082782]
[1768311760574,2.01853334,142.49,142.47,0.66082782]
[1768311760777,7.70959225,142.51,142.45,7.01969609]
[1768311760778,2.01853334,142.48,142.45,0.66082782]
[1768311760990,2.01853334,142.47,142.45,0.66082782]
[1768311762093,2.01853334,142.48,142.45,0.66082782]
[1768311762492,2.01853334,142.48,142.43,12.8]
[1768311762493,2.71102844,142.48,142.43,13.46082782]
[1768311762809,2.71102844,142.48,142.41,0.66082782]
[1768311762810,2.01853334,142.44,142.41,0.66082782]
[1768311763417,2.01853334,142.45,142.41,0.66082782]
[1768311763698,2.01853334,142.45,142.41,7.68276405]
[1768311764982,2.01853334,142.45,142.39,30.35715592]
[1768311764983,2.01853334,142.42,142.39,12.8]
[1768311765402,2.01853334,142.43,142.39,13.46082782]
[1768311765731,2.01853334,142.42,142.39,0.66082782]
[1768311766988,2.01853334,142.42,142.36,32.37899458]
[1768311766989,2.01853334,142.41,142.37,7.68459999]
[1768311767393,2.01853334,142.42,142.37,7.68459999]
[1768311767612,2.01853334,142.42,142.38,0.66082782]
[1768311767898,9.73252564,142.42,142.37,7.68459999]
[1768311768308,9.03968802,142.43,142.38,7.68419323]
[1768311768485,0.6924951,142.42,142.35,0.66082782]
[1768311768686,13.4924951,142.41,142.35,0.66082782]
[1768311768906,2.01853334,142.38,142.35,0.66082782]
[1768311769116,2.01853334,142.38,142.32,7.02612967]
[1768311769287,2.01853334,142.4,142.33,7.02582236]
[1768311769485,2.01853334,142.39,142.34,7.02529428]
[1768311770408,0.6924951,142.38,142.35,7.02491137]
[1768311770603,9.04186295,142.39,142.35,0.66082782]
[1768311771310,2.01853334,142.39,142.35,0.66082782]
[1768311771714,9.73364516,142.4,142.35,2.67936116]
[1768311771900,17.55303933,142.43,142.34,7.02523545]